bitfinex/quotes_SOLUSD_20240808
["timestamp","ask_amount","ask_price","bid_price","bid_amount"]
[1723131926195,45.0,159.43,159.36,21.9615]
[1723131926619,45.0,159.43,159.36,15.6868]
[1723131926914,6.2731,159.41,159.33,15.6903]
[1723131927090,45.0,159.4,159.33,15.6903]
[1723131927422,45.0,159.4,159.34,6.2757]
[1723131927584,45.0,159.41,159.34,6.2757]
[1723131929311,45.0,159.41,159.33,15.6903]
[1723131929522,6.2743,159.38,159.31,16.3161]
[1723131929838,45.0,159.37,159.31,22.593]
[1723131930019,45.0,159.37,159.27,22.3061]
[1723131930200,6.2753,159.36,159.27,22.3061]
[1723131930392,45.0,159.35,159.27,22.3061]
[1723131930587,52.95925254,159.37,159.27,15.6962]
[1723131930788,6.2762,159.34,159.27,15.6962]
[1723131931035,6.2773,159.31,159.24,15.6994]
[1723131931232,67.0775,159.37,159.24,15.6994]
[1723131931233,1.56964211,159.36,159.24,15.6994]
[1723131931436,51.3901,159.37,159.24,15.6994]
[1723131931437,6.2771,159.31,159.24,15.6994]
[1723131931743,46.56964986,159.3,159.24,15.6994]
[1723131931923,46.56964986,159.3,159.24,21.9791]
[1723131932134,45.0,159.3,159.24,21.9791]
[1723131932433,51.2774,159.3,159.24,15.6994]
[1723131932615,45.0,159.3,159.24,15.6994]
[1723131933064,6.2782,159.28,159.21,32.3067]
[1723131933335,6.2803,159.23,159.15,21.9756]
[1723131933537,46.57041334,159.22,159.14,7.1191333]
[1723131933737,1.57053739,159.21,159.15,6.2832]
[1723131933947,45.0,159.21,159.14,0.8354333]
[1723131934110,45.0,159.21,159.19,6.2814]
[1723131934447,45.0,159.2,159.17,6.2822]
[1723131934738,45.0,159.2,159.15,15.7082]
[1723131934915,45.0,159.2,159.16,6.2828]
[1723131935321,45.0,159.2,159.15,21.9914]
[1723131935715,45.0,159.2,159.15,15.7082]
[1723131936235,45.0,159.2,159.16,6.2826]
[1723131936545,45.0,159.2,159.14,0.8354333]
[1723131936836,6.2826,159.17,159.14,0.8354333]
[1723131937047,1.57108194,159.16,159.14,0.8354333]
[1723131937213,45.0,159.16,159.14,0.8354333]
[1723131937613,45.0,159.17,159.14,0.8354333]
[1723131938132,45.0,159.18,159.14,0.8354333]
[1723131939017,6.283,159.16,159.14,0.8354333]
[1723131939212,45.0,159.15,159.14,0.8354333]
[1723131939518,51.2833,159.15,159.14,0.8354333]
[1723131940351,45.0,159.15,159.14,0.8354333]
[1723131941621,6.56939901,159.19,159.14,0.8354333]
[1723131941819,12.85119901,159.19,159.14,0.8354333]
[1723131942150,6.2823,159.18,159.14,0.8354333]
[1723131942451,8.14031066,159.19,159.14,0.8354333]
[1723131942618,6.2822,159.18,159.14,0.8354333]
[1723131942818,6.2831,159.16,159.14,0.8354333]
[1723131943033,7.85454579,159.15,159.14,0.8354333]
[1723131943234,6.2845,159.12,159.08,17.7035745]
[1723131943443,1.57154682,159.11,159.08,17.7035745]
[1723131943627,1.57154682,159.1,159.08,17.7035745]
[1723131943828,45.0,159.11,159.08,17.7035745]
[1723131944617,6.2834,159.15,159.08,23.9895745]
[1723131944946,6.284,159.14,159.08,17.7035745]
[1723131945241,1.57122572,159.18,159.08,17.7035745]
[1723131945242,6.2842,159.13,159.08,17.7035745]
[1723131945944,1.57146587,159.12,159.08,17.7035745]
[1723131946115,46.57146587,159.12,159.08,17.7035745]
[1723131946325,6.2857,159.09,159.08,17.7035745]
[1723131946543,6.2869,159.06,158.99,22.0134]
[1723131946753,52.85956912,159.05,158.98,7.1254333]
[1723131946943,1.57225322,159.04,158.98,7.1254333]
[1723131947342,57.86326213,159.05,158.98,0.8354333]
[1723131947343,7.86059428,159.03,158.98,0.8354333]
[1723131947560,51.57586213,159.05,158.98,0.8354333]
[1723131947758,6.2877,159.04,158.98,0.8354333]
[1723131948043,6.2889,159.01,158.98,0.8354333]
[1723131948348,6.2897,158.99,158.98,0.8354333]
[1723131948550,6.2893,159.0,158.98,0.8354333]
[1723131948842,31.3768,159.03,158.98,0.8354333]
[1723131948843,45.0,158.99,158.98,0.8354333]
[1723131951229,45.0,158.99,158.91,15.7319]
[1723131951230,6.2909,158.96,158.84,53.7069]
[1723131951423,7.83568204,158.98,158.87,15.7353]
[1723131951627,6.2908,158.97,158.87,15.7353]
[1723131951825,46.57312712,158.96,158.79,12.30969376]
[1723131952068,6.2943,158.88,158.8,22.0398]
[1723131952229,6.296,158.83,158.7,9.86540086]
[1723131952425,1.57469626,158.83,158.7,9.86540086]
[1723131952628,6.2988,158.76,158.64,41.0]
[1723131952842,45.0,158.75,158.64,38.8354333]
[1723131953156,45.0,158.75,158.65,1.25986438]
[1723131953323,45.0,158.76,158.68,15.7545]
[1723131953524,45.0,158.76,158.66,31.5122]
[1723131953930,6.3487,158.84,158.72,15.75]
[1723131954150,6.3487,158.84,158.66,31.5122]
[1723131954151,46.57460171,158.83,158.69,15.7539]
[1723131954354,1.57476625,158.82,158.66,31.5122]
[1723131954556,6.2968,158.82,158.74,22.0482]
[1723131954867,20.0,158.83,158.75,6.299]
[1723131955028,10.46891237,158.89,158.77,15.7453]
[1723131955236,8.89455941,158.89,158.77,22.0433]
[1723131955438,15.18825941,158.89,158.81,6.2964]
[1723131955635,15.18825941,158.89,158.79,15.7431]
[1723131955832,8.89455941,158.89,158.79,15.7431]
[1723131956039,1.57384455,158.89,158.79,15.7431]
[1723131957041,6.2941,158.88,158.8,6.2971]
[1723131957736,12.87681599,158.89,158.81,6.2968]
[1723131957936,6.58321599,158.89,158.82,6.2963]
[1723131958137,30.0,158.95,158.83,1.25893636]
[1723131958359,6.58149254,158.93,158.85,15.7379]
[1723131958566,12.87359254,158.93,158.85,15.7379]
[1723131958934,6.58149254,158.93,158.81,15.7411]
[1723131959131,6.58149254,158.93,158.85,6.2952]
[1723131959363,6.58149254,158.93,158.86,6.2945]
[1723131959547,1.57316141,158.97,158.85,15.7372]
[1723131959739,6.2928,158.92,158.85,15.7372]
[1723131959961,6.2921,158.93,158.85,22.0323]
[1723131960255,1.57327618,158.92,158.84,6.2955]
[1723131960451,12.87317099,158.93,158.85,6.2951]
[1723131960656,6.58107099,158.93,158.86,6.2945]
[1723131960871,12.87327099,158.93,158.84,15.7383]
[1723131961036,1.57327211,158.92,158.8,15.743]
[1723131961236,1.57327211,158.92,158.81,6.2965]
[1723131961430,1.57327211,158.92,158.8,15.743]
[1723131961631,6.58107099,158.93,158.81,1.25890341]
[1723131961869,6.3847,159.02,158.87,15.736]
[1723131962053,6.2909,158.96,158.88,6.2937]
[1723131962258,6.2909,158.96,158.88,6.294]
[1723131962461,28.89579026,159.0,158.87,22.0303]
[1723131962663,6.58018422,158.96,158.87,22.0303]
[1723131962859,1.5731388,158.95,158.87,22.0303]
[1723131963164,6.2917,158.94,158.87,15.736]
[1723131963365,6.58042327,158.96,158.87,15.736]
[1723131963568,6.58042327,158.96,158.91,6.2927]
[1723131963743,6.2889,159.01,158.92,1.25820196]
[1723131964062,6.57835439,159.0,158.94,6.2916]
[1723131964268,6.57835439,159.0,158.95,1.25805742]
[1723131964765,6.2885,159.02,158.95,6.2911]
[1723131964980,12.86587259,159.02,158.95,6.2911]
[1723131965466,6.57737259,159.02,158.96,6.2908]
[1723131965848,15.04905437,159.08,158.94,1.25785212]
[1723131966161,12.86289657,159.06,158.97,16.98325212]
[1723131966334,12.86289657,159.06,158.97,15.7254]
[1723131966535,6.2873,159.05,158.98,6.2897]
[1723131967063,1.57197016,159.04,158.95,6.2912]
[1723131967376,6.57569657,159.06,159.01,6.2888]
[1723131967547,6.2854,159.1,159.03,6.288]
[1723131967736,6.2854,159.1,159.02,7.54590021]
[1723131967932,6.2854,159.1,158.94,50.34]
[1723131967933,6.2866,159.07,158.98,15.725]
[1723131968465,6.2866,159.07,158.92,31.4613]
[1723131968466,1.57182421,159.06,158.92,33.94488171]
[1723131968688,6.2885,159.03,158.95,6.2912]
[1723131968843,17.28823931,159.08,158.88,46.8939]
[1723131968844,15.7181,159.06,158.88,46.8939]
[1723131969172,17.29052922,159.06,158.92,15.7302]
[1723131969346,6.289,159.01,158.93,6.2917]
[1723131969542,45.0,159.05,158.88,15.4247]
[1723131969543,46.5725701,159.0,158.88,15.4247]
[1723131969770,20.0,158.99,158.84,31.4773]
[1723131969944,46.57324646,158.98,158.86,15.7368]
[1723131970138,45.0,158.98,158.92,6.2923]
[1723131970769,1.57286396,158.97,158.83,31.4793]
[1723131970944,6.2909,158.96,158.87,15.7352]
[1723131971145,52.86454075,158.95,158.87,15.7352]
[1723131971350,45.0,158.94,158.92,6.2924]
[1723131971574,45.0,158.98,158.91,15.7312]
[1723131971864,6.2544,159.02,158.94,6.2916]
[1723131972063,6.2889,159.01,158.94,6.2916]
[1723131972671,6.2889,159.01,158.93,6.292]
[1723131972878,6.2889,159.01,158.94,6.2916]
[1723131973246,6.2885,159.02,158.94,6.2916]
[1723131973451,1.57256806,159.04,158.96,6.2908]
[1723131973452,6.2877,159.04,158.96,6.2908]
[1723131973851,6.2882,159.03,158.95,15.7273]
[1723131974567,6.2885,159.02,158.95,22.0184]
[1723131974775,6.2885,159.02,158.95,15.7273]
[1723131975159,23.2548,159.07,158.95,15.7273]
[1723131975358,6.2874,159.05,158.95,15.7273]
[1723131975677,6.2874,159.05,158.98,6.2899]
[1723131976350,6.2874,159.05,158.97,6.2903]
[1723131976546,1.57218037,159.04,158.95,15.7273]
[1723131976753,1.57218037,159.04,158.92,15.4547]
[1723131977062,6.2905,158.97,158.91,15.7315]
[1723131977377,1.57288258,159.02,158.88,15.7346]
[1723131977545,6.2905,158.97,158.9,6.2932]
[1723131977746,51.291,158.96,158.88,15.7346]
[1723131977957,6.2914,158.95,158.88,22.0285]
[1723131978267,45.0,158.94,158.88,15.7346]
[1723131978473,45.0,158.94,158.89,6.2936]
[1723131978675,45.0,158.95,158.89,6.2936]
[1723131979185,45.0,158.95,158.86,16.3025]
[1723131979186,7.86493469,158.94,158.86,16.3025]
[1723131979481,45.0,158.93,158.87,6.2941]
[1723131979782,45.0,158.93,158.86,6.2947]
[1723131980084,45.0,158.93,158.82,6.2219]
[1723131980085,6.2931,158.91,158.82,15.7407]
[1723131980371,6.294,158.88,158.8,6.2968]
[1723131980572,46.57390978,158.87,158.79,15.7437]
[1723131980944,1.57390978,158.87,158.79,15.7437]
[1723131981154,45.0,158.88,158.85,6.2952]
[1723131981368,45.0,158.88,158.79,31.4861]
[1723131981369,45.0,158.88,158.83,15.7391]
[1723131982367,45.0,158.88,158.84,6.2956]
[1723131982580,45.0,158.88,158.85,6.2951]
[1723131982954,45.0,158.88,158.83,22.0351]
[1723131983295,1.57376219,158.87,158.81,6.2967]
[1723131983575,45.0,158.88,158.81,6.2967]
[1723131983775,1.57386757,158.87,158.81,6.2967]
[1723131983978,1.57386757,158.87,158.8,22.0401]
[1723131984192,1.57386757,158.87,158.77,22.0436]
[1723131984193,6.2957,158.84,158.77,22.0436]
[1723131984481,45.0,158.83,158.77,22.0436]
[1723131984668,45.0,158.83,158.78,6.2978]
[1723131984868,45.0,158.83,158.77,22.0439]
[1723131985064,45.0,158.84,158.77,22.0439]
[1723131985380,45.0,158.84,158.78,6.2979]
[1723131985570,45.0,158.84,158.79,6.2975]
[1723131986175,45.0,158.84,158.78,6.2979]
[1723131986685,1.57430881,158.83,158.78,6.2979]
[1723131986884,1.57430881,158.83,158.77,22.0439]
[1723131987086,1.57430881,158.83,158.74,22.0479]
[1723131987375,1.57469081,158.82,158.74,15.7487]
[1723131987594,6.2963,158.83,158.74,15.7487]
[1723131987766,46.57453739,158.82,158.7,31.5046]
[1723131988081,46.57453739,158.82,158.73,15.7496]
[1723131988588,6.2972,158.8,158.73,22.0495]
[1723131988767,46.57473658,158.79,158.73,22.0495]
[1723131989287,45.0,158.78,158.75,6.299]
[1723131989584,1.57466449,158.79,158.74,6.2995]
[1723131989773,1.57466996,158.78,158.69,15.753]
[1723131990079,6.1224,158.77,158.69,15.753]
[1723131990280,45.0,158.76,158.72,6.3002]
[1723131990585,45.0,158.76,158.69,15.753]
[1723131990586,6.2961,158.83,158.76,6.2987]
[1723131990882,6.2957,158.84,158.77,6.2983]
[1723131991189,6.58478108,158.84,158.78,15.7443]
[1723131991394,6.1224,158.85,158.78,15.7443]
[1723131991576,12.4176,158.85,158.78,15.7443]
[1723131991886,6.58409904,158.84,158.75,15.7477]
[1723131992258,6.2964,158.82,158.75,22.0466]
[1723131992457,6.58409904,158.84,158.75,22.0466]
[1723131992458,12.87979904,158.84,158.77,6.298]
[1723131992663,6.58409904,158.84,158.77,15.7453]
[1723131992874,6.58409904,158.84,158.78,6.2979]
[1723131993100,6.58409904,158.84,158.77,15.7453]
[1723131993395,6.58409904,158.84,158.74,47.2458]
[1723131993562,6.58409904,158.84,158.76,15.7465]
[1723131994063,45.0,158.83,158.77,6.2983]
[1723131994465,51.2963,158.83,158.76,15.7465]
[1723131994694,6.2964,158.82,158.76,15.7465]
[1723131994858,45.0,158.81,158.76,15.7465]
[1723131995062,6.58409904,158.84,158.78,6.298]
[1723131995256,6.58409904,158.84,158.78,15.7443]
[1723131995481,6.1224,158.85,158.78,15.7443]
[1723131995659,6.1224,158.85,158.74,47.2458]
[1723131995862,6.2964,158.82,158.75,6.2991]
[1723131996087,1.5745644,158.84,158.74,15.7485]
[1723131996388,6.2971,158.81,158.74,22.0478]
[1723131996575,6.1224,158.85,158.74,15.7485]
[1723131996768,6.296,158.83,158.76,6.2985]
[1723131996957,45.0,158.82,158.74,32.75713652]
[1723131997158,6.1224,158.85,158.81,6.2967]
[1723131997368,6.58389221,158.86,158.79,1.25919095]
[1723131997695,6.1942,158.94,158.8,1.25918333]
[1723131997989,6.58107519,158.91,158.9,6.2932]
[1723131998194,6.1942,158.99,158.84,50.34]
[1723131998195,6.1942,158.99,158.93,15.7298]
[1723131998358,12.77296644,158.99,158.93,15.7298]
[1723131998561,6.2906,158.97,158.9,22.0261]
[1723131998763,6.2904,158.97,158.89,6.2933]
[1723131998992,6.291,158.96,158.89,6.2933]
[1723131999314,12.77296644,158.99,158.9,16.99155479]
[1723131999473,6.1942,158.99,158.92,15.7304]
[1723131999867,1.57271855,159.06,158.86,31.473]
[1723131999868,6.57789328,159.01,158.87,1.25817484]
[1723132000086,6.1942,159.04,158.97,15.7261]
[1723132000270,6.1942,159.04,158.98,6.2897]
[1723132000703,6.1942,159.04,158.95,6.2911]
[1723132001012,6.1942,159.04,158.93,15.7296]
[1723132001369,6.1942,159.04,158.97,6.2903]
[1723132001594,6.1942,159.04,158.9,31.465]
[1723132001595,6.1942,159.04,158.98,6.29]
[1723132001771,6.57627074,159.06,158.96,15.7268]
[1723132001970,6.4074,159.09,158.96,15.7268]
[1723132002273,6.2869,159.06,158.98,6.29]
[1723132002471,6.57554328,159.07,158.98,6.29]
[1723132003294,6.57554328,159.07,159.0,6.2892]
[1723132003468,6.57554328,159.07,158.99,6.2896]
[1723132003803,6.57554328,159.07,159.04,6.2876]
[1723132003972,0.914532,159.11,159.06,6.2869]
[1723132004385,0.914532,159.11,159.07,7.54373747]
[1723132004871,0.914532,159.11,159.08,6.286]
[1723132005070,0.914532,159.11,159.05,6.2871]
[1723132005297,0.914532,159.11,159.06,6.2869]
[1723132005484,0.914532,159.11,159.04,15.7188]
[1723132005692,0.914532,159.11,159.05,7.5444399]
[1723132005896,0.914532,159.11,159.06,6.2868]
[1723132006195,0.914532,159.11,159.05,6.2871]
[1723132006400,0.914532,159.11,159.04,15.7188]
[1723132006570,0.914532,159.11,159.04,22.0063]
[1723132006770,0.914532,159.11,159.05,6.2872]
[1723132006771,45.914532,159.11,159.05,6.2872]
[1723132006989,0.914532,159.11,159.04,22.0065]
[1723132007502,7.199432,159.11,159.04,15.7188]
[1723132007680,0.914532,159.11,159.04,15.7188]
[1723132007883,0.914532,159.11,159.05,6.2873]
[1723132008086,0.914532,159.11,159.05,6.2872]
[1723132008283,0.914532,159.11,159.05,1.25724679]
[1723132008587,0.914532,159.11,159.04,15.7188]
[1723132008895,0.914532,159.11,159.07,6.2863]
[1723132009071,0.914532,159.11,159.05,6.2869]
[1723132009274,0.914532,159.11,159.04,15.7188]
[1723132009275,7.199632,159.11,159.04,15.7188]
[1723132009596,45.0,159.1,159.0,47.3197]
[1723132009772,45.0,159.1,159.02,15.7203]
[1723132010098,6.5736,159.09,158.95,53.8204]
[1723132010279,46.57213849,159.08,158.97,6.2903]
[1723132010472,6.2887,159.02,158.95,15.7274]
[1723132010806,1.57228404,159.07,158.9,47.4633]
[1723132010807,30.0,159.07,158.96,1.25790757]
[1723132010971,45.0,159.08,159.03,15.7201]
[1723132011175,45.0,159.08,159.0,15.7231]
[1723132011373,6.2869,159.07,159.0,15.7231]
[1723132011571,45.0,159.06,159.0,22.0123]
[1723132011774,45.0,159.08,159.03,15.7202]
[1723132012013,6.5736,159.09,159.05,6.2872]
[1723132012295,0.914532,159.11,159.06,7.5440078]
[1723132012610,0.914532,159.11,159.04,6.2873]
[1723132012895,7.199732,159.11,159.03,15.7202]
[1723132013079,6.2854,159.1,159.03,15.7202]
[1723132013283,0.914532,159.11,158.99,15.7238]
[1723132013485,6.2861,159.08,159.0,6.2889]
[1723132013688,45.0,159.07,159.0,6.2889]
[1723132013899,45.0,159.07,159.01,6.2888]
[1723132014201,51.2865,159.07,159.0,6.2892]
[1723132014597,51.2865,159.07,158.99,22.0134]
[1723132014978,51.2865,159.07,159.0,6.2892]
[1723132015176,6.2874,159.05,158.95,15.7273]
[1723132015377,46.57223919,159.04,158.98,6.29]
[1723132015594,46.57223919,159.04,159.02,6.2883]
[1723132015595,0.1277185,159.04,159.02,6.2883]
[1723132015799,0.1277185,159.04,159.03,6.2881]
[1723132018804,0.8125377,159.08,159.07,6.2865]
[1723132019913,0.8125377,159.08,159.07,7.5435527]
[1723132020305,0.8125377,159.08,159.07,6.2865]
[1723132020699,0.8125377,159.08,159.07,7.54350447]
[1723132021283,0.8125377,159.08,159.07,6.2865]
[1723132022484,0.8125377,159.08,159.07,26.2865]
[1723132023780,0.8125377,159.08,159.07,67.2565]
[1723132024287,18.9053506,159.21,159.14,6.2837]
[1723132024288,12.6243506,159.21,159.14,6.2837]
[1723132024485,12.6243506,159.21,159.1,31.4258]
[1723132024720,6.5691506,159.21,159.19,6.2817]
[1723132024962,16.7305377,159.24,159.2,16.95896065]
[1723132024963,0.8125377,159.24,159.2,16.95896065]
[1723132025097,0.8125377,159.24,159.2,15.7028]
[1723132025601,0.8125377,159.24,159.23,6.2802]
[1723132025793,0.8125377,159.24,159.22,21.9815]
[1723132026314,0.8125377,159.24,159.22,15.701]
[1723132026484,0.8125377,159.24,159.18,47.1149]
[1723132026686,0.8125377,159.24,159.18,31.4104]
[1723132026884,0.8125377,159.24,159.11,2.54547297]
[1723132027185,0.8125377,159.24,159.1,81.4462]
[1723132027186,0.8125377,159.24,159.12,1.25633926]
[1723132027386,0.8125377,159.24,159.19,6.2817]
[1723132027593,0.8125377,159.24,159.12,1.25633926]
[1723132027594,0.8125377,159.24,159.21,6.2808]
[1723132027808,0.8125377,159.24,159.18,15.7046]
[1723132027809,0.8125377,159.24,159.2,6.2813]
[1723132028186,0.8125377,159.24,159.18,15.7046]
[1723132028382,0.8125377,159.24,159.1,81.4462]
[1723132028383,0.8125377,159.24,159.15,15.708]
[1723132028598,6.2805,159.23,159.16,6.2829]
[1723132028822,0.8125377,159.24,159.1,81.4462]
[1723132028823,0.8125377,159.24,159.21,6.2808]
[1723132029034,0.8125377,159.24,159.2,6.281]
[1723132029232,0.8125377,159.24,159.23,6.2802]
[1723132029410,0.8125377,159.24,159.21,15.7019]
[1723132029837,0.8125377,159.24,159.22,6.2805]
[1723132030033,0.8125377,159.24,159.21,15.7019]
[1723132030034,0.8125377,159.24,159.23,6.2802]
[1723132030243,0.8125377,159.24,159.22,6.2805]
[1723132030534,0.8125377,159.24,159.21,21.9828]
[1723132031039,0.8125377,159.24,159.18,31.4103]
[1723132031216,0.8125377,159.24,159.2,15.7028]
[1723132031705,0.8125377,159.24,159.2,21.984]
[1723132031909,0.8125377,159.24,159.21,6.2809]
[1723132032116,0.8125377,159.24,159.2,15.7028]
[1723132032117,0.8125377,159.24,159.22,6.2806]
[1723132032710,0.8125377,159.24,159.21,6.2809]
[1723132032905,0.8125377,159.24,159.22,6.2806]
[1723132033143,7.0925377,159.24,159.17,6.2822]
[1723132033446,7.0925377,159.24,159.12,15.7108]
[1723132033447,0.8125377,159.24,159.12,15.7108]
[1723132033606,6.3159,159.23,159.12,15.7108]
[1723132033808,65.0,159.22,159.12,15.7108]
[1723132034027,6.281,159.21,159.14,21.992]
[1723132034232,45.0,159.2,159.11,21.9966]
[1723132034421,96.4528,159.2,159.08,15.7149]
[1723132034626,6.2822,159.18,159.11,6.2849]
[1723132034823,51.2826,159.17,159.1,6.2852]
[1723132035032,45.0,159.17,159.08,15.7149]
[1723132035230,6.2834,159.15,159.08,22.0009]
[1723132035416,45.0,159.14,159.08,22.0009]
[1723132036324,1.57128246,159.13,159.0,31.4463]
[1723132036525,26.57214519,159.13,158.95,6.4869]
[1723132036734,6.2857,159.09,159.01,6.2888]
[1723132036921,45.0,159.08,159.01,6.2888]
[1723132037116,45.0,159.08,158.99,15.7241]
[1723132037444,6.2873,159.06,158.99,15.7241]
[1723132037750,45.0,159.05,158.99,22.0137]
[1723132038617,51.2874,159.05,158.99,15.7241]
[1723132038820,45.0,159.05,158.99,15.7241]
[1723132039511,45.0,159.05,158.99,22.0134]
[1723132039719,45.0,159.06,158.99,22.0134]
[1723132040061,45.0,159.06,158.99,16.9817835]
[1723132040347,6.57214519,159.13,159.04,15.7191]
[1723132040825,6.2846,159.12,159.05,6.287]
[1723132041336,6.57214519,159.13,159.04,22.0067]
[1723132041337,6.2851,159.11,159.04,22.0067]
[1723132041643,6.57214519,159.13,159.04,15.7191]
[1723132041827,6.57214519,159.13,159.0,31.445]
[1723132041828,6.57214519,159.13,159.11,6.2846]
[1723132042141,15.2977,159.2,159.13,6.2841]
[1723132042142,6.5019,159.19,159.13,6.2841]
[1723132042487,13.07239333,159.19,159.14,1.25664519]
[1723132042615,13.07239333,159.19,159.14,6.2837]
[1723132042814,6.2822,159.18,159.12,15.7108]
[1723132043117,19.35344085,159.19,159.12,21.9953]
[1723132043317,13.07164085,159.19,159.12,15.7108]
[1723132043771,6.5019,159.19,159.12,15.7108]
[1723132043971,2.54881937,159.23,159.15,15.7083]
[1723132044140,13.83829813,159.24,159.15,15.7083]
[1723132044346,13.83829813,159.24,159.16,1.25633463]
[1723132044571,13.83829813,159.24,159.15,21.9912]
[1723132044741,6.2805,159.23,159.16,6.2828]
[1723132045143,6.2807,159.22,159.15,15.7083]
[1723132045345,6.2812,159.21,159.13,6.2841]
[1723132045551,13.83829813,159.24,159.12,15.7113]
[1723132045868,6.281,159.21,159.12,15.7113]
[1723132046159,45.0,159.2,159.18,6.2821]
[1723132046340,51.2805,159.23,159.12,31.4211]
[1723132046542,13.83829813,159.24,159.12,31.4211]
[1723132047236,13.83829813,159.24,159.12,47.1318]
[1723132047761,45.0,159.23,159.12,47.1318]
[1723132047965,6.282,159.19,159.12,15.7107]
[1723132048151,45.0,159.23,159.09,15.7143]
[1723132048152,45.0,159.18,159.09,15.7143]
[1723132048352,6.2828,159.17,159.1,6.285]
[1723132048673,51.2831,159.16,159.09,21.9999]
[1723132048845,45.0,159.16,159.1,6.2853]
[1723132049038,6.283,159.16,159.09,21.9999]
[1723132049261,45.0,159.15,159.09,15.7143]
[1723132049462,29.53819813,159.24,159.11,15.7115]
[1723132049643,20.0,159.23,159.11,15.7115]
[1723132049840,6.281,159.21,159.14,6.2834]
[1723132050046,6.2817,159.2,159.13,21.9936]
[1723132050260,20.0,159.23,159.1,15.7132]
[1723132050468,21.57060648,159.23,159.1,15.7132]
[1723132050661,15.7021,159.22,159.1,15.7132]
[1723132050855,6.2822,159.18,159.11,6.2849]
[1723132051260,6.2822,159.18,159.1,21.9984]
[1723132051749,6.2839,159.14,159.06,15.7165]
[1723132051944,45.0,159.13,159.06,15.7165]
[1723132052266,45.0,159.17,159.06,15.7165]
[1723132052571,45.0,159.17,159.08,15.7145]
[1723132052866,6.2825,159.18,159.08,15.7145]
[1723132053172,15.7031,159.21,159.08,15.7145]
[1723132053355,1.57111622,159.2,159.08,15.7145]
[1723132053967,20.0,159.2,159.08,15.7145]
[1723132054172,45.0,159.19,159.08,15.7145]
[1723132054466,20.0,159.18,159.08,15.7145]
[1723132054652,45.0,159.17,159.08,15.7145]
[1723132054854,6.57107507,159.19,159.1,15.7127]
[1723132055166,12.85287507,159.19,159.12,6.2845]
[1723132055477,12.85287507,159.19,159.1,15.7127]
[1723132055478,6.57107507,159.19,159.13,6.2841]
[1723132055969,6.57107507,159.19,159.14,6.2834]
[1723132056171,6.2814,159.2,159.12,15.7108]
[1723132056375,6.2814,159.2,159.13,6.2838]
[1723132056556,6.2814,159.2,159.14,6.2837]
[1723132057158,6.56917746,159.21,159.14,6.2837]
[1723132057358,45.0,159.2,159.14,6.2837]
[1723132058180,6.56917746,159.21,159.14,15.7087]
[1723132058470,7.2694377,159.24,159.17,6.2825]
[1723132058673,6.2806,159.22,159.16,21.9899]
[1723132058975,6.2803,159.23,159.17,6.2825]
[1723132059163,13.83755232,159.24,159.18,6.282]
[1723132059567,45.0,159.23,159.18,6.282]
[1723132059858,13.83755232,159.24,159.11,37.8315]
[1723132059859,0.8125377,159.24,159.23,6.2802]
[1723132060250,0.8125377,159.24,159.22,21.9813]
[1723132060454,0.8125377,159.24,159.23,1.25590234]
[1723132060673,0.8125377,159.24,159.22,21.9813]
[1723132060865,0.8125377,159.24,159.22,15.7008]
[1723132061066,0.8125377,159.24,159.22,21.9813]
[1723132062369,0.8125377,159.24,159.23,7.53600572]
[1723132062785,0.8125377,159.24,159.23,6.2802]
[1723132063404,0.8125377,159.24,159.23,7.53588662]
[1723132063685,0.8125377,159.24,159.23,27.53588662]
[1723132063853,0.8125377,159.24,159.23,27.53480178]
[1723132064055,6.2748,159.37,159.3,6.2772]
[1723132064256,12.5057,159.38,159.29,15.6941]